bitfinex/quotes_ETHUSD_20260216
["timestamp","ask_amount","ask_price","bid_price","bid_amount"]
[1771211398828,0.49167214,1958.3,1958.1,0.0044]
[1771211400873,0.49167214,1958.3,1957.9,0.0011]
[1771211401074,0.49167214,1958.3,1958.0,0.0044]
[1771211401437,0.698,1958.4,1958.0,0.0044]
[1771211401438,0.001,1958.4,1958.0,0.0044]
[1771211401675,0.494211,1959.0,1958.2,8.30787771]
[1771211401869,0.6966,1958.7,1958.2,8.30787771]
[1771211402239,0.7,1958.9,1958.4,8.30787771]
[1771211402739,0.7,1958.9,1958.2,8.30787771]
[1771211402935,8.31182911,1958.7,1957.9,0.0011]
[1771211403247,7.82015697,1958.7,1957.9,0.48882074]
[1771211403450,0.7,1958.6,1957.9,0.48882074]
[1771211403649,0.7,1958.6,1958.3,0.48772074]
[1771211404043,0.7,1958.9,1958.3,0.48772074]
[1771211405552,0.00253886,1959.0,1958.4,7.82015697]
[1771211405742,0.00253886,1959.0,1958.5,0.48772074]
[1771211406474,0.00253886,1959.0,1958.4,7.82015697]
[1771211407381,0.00253886,1959.0,1958.6,7.82015697]
[1771211407558,0.00253886,1959.0,1958.6,8.30787771]
[1771211407941,0.00253886,1959.0,1958.6,0.48772074]
[1771211409361,0.001,1958.9,1958.6,0.48772074]
[1771211410272,0.001,1958.9,1958.4,0.48772074]
[1771211416580,0.001,1958.9,1958.3,0.0011]
[1771211416581,0.49538751,1958.9,1958.3,0.0011]
[1771211418461,0.49438751,1958.7,1958.3,0.0011]
[1771211420175,0.49438751,1958.7,1958.0,0.0011]
[1771211421482,0.49438751,1958.7,1958.4,0.0011]
[1771211421667,0.49438751,1958.7,1958.3,0.0011]
[1771211423065,0.697,1958.6,1958.3,0.0011]
[1771211423395,0.697,1958.8,1958.3,0.0011]
[1771211423765,1.19138751,1958.8,1958.3,0.0011]
[1771211426872,0.001,1958.9,1958.3,0.0011]
[1771211428000,0.49538751,1958.9,1958.3,0.0011]
[1771211430304,0.001,1958.9,1958.3,0.45397749]
[1771211433905,0.49538751,1958.9,1958.3,0.0011]
[1771211434086,0.49538751,1958.9,1958.4,0.0011]
[1771211434286,0.49538751,1958.8,1958.4,0.0011]
[1771211436506,0.001,1958.8,1958.4,0.0011]
[1771211436683,0.001,1958.8,1958.4,0.45397749]
[1771211440314,0.001,1958.8,1958.4,0.0011]
[1771211445991,0.001,1958.8,1958.4,0.46612334]
[1771211446898,0.001,1958.8,1958.5,0.0011]
[1771211447098,0.001,1958.7,1958.5,0.0011]
[1771211451429,0.001,1958.7,1958.6,0.46502334]
[1771211451631,0.001,1958.9,1958.6,0.46502334]
[1771211453518,0.001,1958.9,1958.7,7.82902771]
[1771211453705,0.001,1959.1,1958.8,0.46502334]
[1771211455111,0.001,1959.1,1958.9,8.29405105]
[1771211456316,0.001,1959.1,1958.9,7.82902771]
[1771211459199,0.001,1959.0,1958.9,7.82902771]
[1771211460331,0.45340958,1959.5,1958.9,8.29405105]
[1771211460641,1.611,1959.7,1959.2,0.46502334]
[1771211460807,0.92,1959.7,1959.3,8.29405105]
[1771211461009,0.00153886,1960.0,1959.3,8.29405105]
[1771211461420,0.00153886,1960.0,1959.5,8.29405105]
[1771211461729,0.00153886,1960.0,1959.6,0.46502334]
[1771211461920,0.00153886,1960.0,1959.7,7.82902771]
[1771211462708,0.45440958,1959.9,1959.2,0.46502334]
[1771211462910,0.001,1959.9,1959.3,1.31102334]
[1771211465305,0.45440958,1959.9,1959.3,0.846]
[1771211466613,0.001,1959.9,1959.4,0.46502334]
[1771211467054,0.001,1959.9,1959.5,7.82902771]
[1771211468664,0.00153886,1960.0,1959.7,8.29405105]
[1771211468868,0.45340958,1960.8,1960.0,16.12307876]
[1771211469152,0.45494844,1961.0,1960.3,7.82902771]
[1771211469460,0.45494844,1961.0,1960.1,1.31502334]
[1771211469461,3.8,1961.5,1960.5,0.46502334]
[1771211469752,0.45340958,1961.1,1960.1,8.29405105]
[1771211469949,0.45340958,1961.1,1960.1,0.46502334]
[1771211470124,0.45340958,1961.1,1960.2,0.851]
[1771211470748,0.45340958,1961.1,1960.2,1.31602334]
[1771211470951,0.45340958,1961.1,1960.2,0.851]
[1771211471640,0.45340958,1961.1,1960.0,0.4665622]
[1771211471641,0.45340958,1960.9,1960.0,0.00153886]
[1771211471845,0.0011,1960.1,1960.0,0.00153886]
[1771211472019,0.45340958,1960.7,1960.0,0.00153886]
[1771211478156,0.45340958,1960.7,1959.5,2.25785198]
[1771211478728,0.45340958,1960.7,1959.6,0.49791312]
[1771211480166,0.45340958,1960.7,1959.5,1.75993886]
[1771211480868,0.48206229,1960.6,1959.5,1.75993886]
[1771211483465,0.48206229,1960.4,1959.5,1.75993886]
[1771211483670,1.17106229,1960.3,1959.5,1.75993886]
[1771211483835,0.689,1960.3,1959.6,0.49791312]
[1771211484045,0.0011,1960.5,1959.6,0.49791312]
[1771211485459,0.48316229,1960.5,1959.5,1.75993886]
[1771211485833,0.48316229,1960.5,1959.5,2.25785198]
[1771211486667,0.48316229,1960.5,1959.6,0.49791312]
[1771211487571,0.48316229,1960.5,1959.3,0.49791312]
[1771211487745,0.48206229,1960.4,1959.3,0.49791312]
[1771211488157,0.48206229,1960.4,1959.2,0.001]
[1771211488535,0.48206229,1960.3,1959.2,0.001]
[1771211489674,0.48206229,1960.1,1959.2,0.001]
[1771211489977,0.48206229,1959.9,1959.2,0.001]
[1771211491348,0.48206229,1960.1,1959.2,0.49891312]
[1771211491662,0.69,1960.2,1959.2,0.49891312]
[1771211491852,1.17206229,1960.2,1959.2,0.49891312]
[1771211492052,1.17206229,1960.2,1959.2,0.001]
[1771211492053,0.48206229,1960.1,1959.2,0.001]
[1771211495170,0.48206229,1960.1,1959.2,0.49891312]
[1771211495860,0.48206229,1960.1,1959.3,0.001]
[1771211499768,0.48206229,1960.1,1959.3,0.49891312]
[1771211500157,0.69,1960.2,1959.3,0.49891312]
[1771211501144,1.17206229,1960.2,1959.3,0.49891312]
[1771211502165,0.69,1960.2,1959.3,0.49891312]
[1771211502950,0.0011,1960.5,1959.3,0.49891312]
[1771211503872,0.0011,1960.5,1959.4,0.6]
[1771211504172,0.0011,1960.5,1959.5,0.45770445]
[1771211505748,0.0011,1960.8,1960.1,0.48570695]
[1771211505970,0.0011,1960.8,1960.0,9.75733942]
[1771211505971,0.00153886,1961.0,1960.4,0.48570695]
[1771211506368,1.607,1961.8,1960.4,0.48570695]
[1771211506557,1.607,1961.8,1960.3,0.919]
[1771211506558,1.607,1961.8,1960.6,0.48570695]
[1771211506758,0.49205831,1961.7,1960.7,0.47615632]
[1771211507078,0.49205831,1961.7,1960.8,0.47615632]
[1771211507273,0.49205831,1961.7,1960.9,0.47615632]
[1771211507474,0.49205831,1961.7,1960.6,0.48570695]
[1771211508376,1.607,1961.8,1960.6,0.48570695]
[1771211508677,0.0011,1960.7,1960.6,0.48570695]
[1771211508980,1.607,1961.8,1960.6,0.48570695]
[1771211509960,0.49205831,1961.7,1960.3,0.48570695]
[1771211510159,0.49205831,1961.7,1960.5,1.32470695]
[1771211510380,0.49205831,1961.7,1960.6,0.48570695]
[1771211516559,0.49205831,1961.7,1960.4,0.48570695]
[1771211520410,0.49205831,1961.7,1960.7,0.001]
[1771211520567,0.49205831,1961.5,1960.7,0.001]
[1771211520765,0.1024,1961.4,1960.7,0.001]
[1771211520987,0.49205831,1961.3,1960.7,0.001]
[1771211521765,0.59445831,1961.4,1960.7,0.001]
[1771211522163,0.49205831,1961.3,1960.7,0.001]
[1771211523078,1.17805831,1961.2,1960.7,0.001]
[1771211523592,0.686,1961.2,1960.7,0.001]
[1771211523818,0.49205831,1961.1,1960.7,0.001]
[1771211533292,0.49205831,1961.1,1960.8,0.001]
[1771211533583,0.0011,1961.0,1960.8,0.001]
[1771211543136,0.0011,1961.0,1960.8,0.46409427]
[1771211543647,0.0011,1961.0,1960.8,0.001]
[1771211544131,0.4600425,1961.0,1960.8,0.001]
[1771211545536,0.0011,1961.0,1960.8,0.001]
[1771211546809,0.0011,1960.9,1960.8,0.001]
[1771211547206,0.0011,1960.9,1960.8,4.33e-05]
[1771211549743,0.0011,1960.9,1960.8,0.46313757]
[1771211551653,0.0011,1961.2,1960.8,0.46313757]
[1771211555032,0.0011,1961.1,1960.8,4.33e-05]
[1771211556149,0.0011,1961.1,1960.8,0.46313757]
[1771211558136,0.0011,1961.0,1960.8,4.33e-05]
[1771211558347,0.0011,1961.1,1960.8,4.33e-05]
[1771211560251,0.0011,1961.1,1960.8,0.46313757]
[1771211560642,0.0011,1961.0,1960.8,0.46313757]
[1771211563244,0.0011,1960.9,1960.8,4.33e-05]
[1771211566323,0.0011,1961.0,1960.8,4.33e-05]
[1771211566529,0.0011,1961.0,1960.8,8.26465445]
[1771211567160,0.0011,1961.2,1960.8,8.26465445]
[1771211568368,0.0011,1961.1,1960.9,0.45294356]
[1771211569031,0.0011,1961.2,1960.9,0.45294356]
[1771211569231,0.0011,1961.1,1960.9,0.45294356]
[1771211570157,0.0011,1961.1,1960.8,7.81171089]
[1771211570363,0.0011,1961.1,1960.8,4.33e-05]
[1771211573631,0.0011,1961.1,1960.9,0.001]
[1771211573832,0.0011,1961.0,1960.9,0.001]
[1771211574837,0.0011,1961.0,1960.7,0.001]
[1771211577749,0.48429964,1961.0,1960.7,0.001]
[1771211578069,0.0011,1961.0,1960.7,0.001]
[1771211579872,0.0011,1961.0,1960.7,0.45394356]
[1771211581477,0.48429964,1961.0,1960.7,0.001]
[1771211584173,0.48429964,1961.0,1960.5,0.001]
[1771211584471,0.48319964,1960.8,1960.5,0.001]
[1771211585168,0.48319964,1960.7,1960.5,0.001]
[1771211587684,0.687,1960.8,1960.7,0.001]
[1771211589773,1.17019964,1960.8,1960.7,0.001]
[1771211589974,1.17019964,1960.8,1960.5,0.001]
[1771211590161,1.17019964,1960.8,1960.5,0.0029433]
[1771211591977,0.48319964,1960.7,1960.5,0.0029433]
[1771211593582,0.687,1960.8,1960.5,0.0029433]
[1771211595384,0.49595343,1960.5,1960.0,0.00153886]
[1771211595685,1.18995343,1960.5,1960.1,0.0019433]
[1771211596156,0.694,1960.5,1960.1,0.0019433]
[1771211597461,0.694,1960.5,1960.0,0.00153886]
[1771211597662,0.694,1960.5,1960.1,0.0019433]
[1771211597871,1.18995343,1960.5,1960.1,0.0019433]
[1771211598261,0.694,1960.5,1960.1,0.0019433]
[1771211598466,7.81595456,1961.0,1960.3,7.81485456]
[1771211598467,0.0011,1961.0,1960.3,7.81485456]
[1771211598656,0.0011,1961.0,1960.4,0.46008906]
[1771211598657,0.697,1960.9,1960.4,0.46008906]
[1771211598853,0.697,1960.9,1960.4,0.46203236]
[1771211599162,0.697,1960.9,1960.5,0.0019433]
[1771211599679,0.697,1960.9,1960.6,0.0019433]
[1771211599860,0.697,1960.9,1960.5,0.0019433]
[1771211600256,0.697,1960.9,1960.6,0.0019433]
[1771211600483,0.697,1960.9,1960.6,0.001]
[1771211600780,0.0011,1960.8,1960.7,0.0019433]
[1771211609002,0.49595343,1960.7,1960.6,0.0019433]
[1771211609189,0.49595343,1960.6,1960.0,0.00153886]
[1771211609502,7.81485456,1960.2,1959.4,0.46108906]
[1771211609800,8.51585456,1960.2,1959.4,0.46108906]
[1771211610298,9.01180799,1960.2,1959.4,0.46108906]
[1771211611987,1.19695343,1960.2,1959.4,0.46108906]
[1771211612884,1.19695343,1960.2,1959.5,0.46108906]
[1771211613998,0.49595343,1960.1,1959.5,0.001]
[1771211618508,0.49595343,1960.1,1959.5,0.46108906]
[1771211619985,0.701,1960.2,1959.6,0.46008906]
[1771211621198,1.19695343,1960.2,1959.6,0.46008906]
[1771211624396,0.47064227,1960.1,1959.5,0.001]
[1771211624806,0.47064227,1960.1,1959.6,0.001]
[1771211625005,0.47174227,1960.1,1959.6,0.001]
[1771211626420,0.46214259,1959.9,1959.6,0.001]
[1771211626895,7.81485456,1960.0,1959.6,0.001]
[1771211627422,8.27699715,1960.0,1959.6,0.001]
[1771211627616,0.711,1959.9,1959.6,0.001]
[1771211638431,0.46214259,1959.8,1959.6,0.001]
[1771211638633,0.46214259,1959.8,1959.7,0.001]
[1771211639667,0.46214259,1959.7,1959.5,0.001]
[1771211640341,0.724,1959.7,1959.5,0.001]
[1771211641283,0.0011,1959.9,1959.5,0.001]
[1771211641502,0.0011,1959.9,1959.5,0.49670475]
[1771211641783,0.725,1959.8,1959.5,0.001]
[1771211643887,0.725,1959.8,1959.5,0.49670475]
[1771211647683,0.725,1959.8,1959.5,0.001]
[1771211652073,0.725,1959.8,1959.6,0.001]
[1771211652396,0.0011,1959.7,1959.6,0.001]
[1771211674887,0.49391485,1959.7,1959.4,0.001]
[1771211675216,8.31654054,1959.7,1959.4,0.001]
[1771211676203,0.49391485,1959.7,1959.4,0.001]
[1771211677118,0.0011,1959.6,1959.4,0.001]
[1771211677419,0.0011,1959.6,1959.5,0.001]
[1771211689823,0.0011,1959.6,1959.2,0.001]
[1771211689824,0.48726697,1959.6,1959.2,0.001]
[1771211690029,8.30879266,1959.5,1959.2,0.001]
[1771211693024,9.06379266,1959.5,1959.2,0.001]
[1771211694019,0.48616697,1959.4,1959.0,0.00253886]
[1771211694250,0.756,1959.3,1959.0,0.00253886]
[1771211694419,9.06479266,1959.3,1959.0,0.00253886]
[1771211694618,0.48616697,1959.2,1959.0,0.00253886]
[1771211694825,0.756,1959.1,1959.0,0.00253886]
[1771211697163,0.48616697,1959.4,1959.0,0.00253886]
[1771211697455,0.759,1959.3,1959.0,0.00253886]
[1771211697655,9.06779266,1959.3,1959.0,0.00253886]
[1771211698047,7.82262569,1959.3,1959.0,0.00253886]
[1771211698245,0.76,1959.2,1959.0,0.00253886]
[1771211698644,0.76,1959.2,1958.9,0.46344791]
[1771211698645,0.48616697,1959.1,1958.9,0.001]
[1771211698959,1.76243361,1958.9,1958.4,0.0011]
[1771211699146,0.48616697,1958.5,1958.0,0.00153886]
[1771211699339,7.82262569,1958.6,1958.0,0.00153886]
[1771211699340,7.82262569,1958.2,1958.1,0.0011]
[1771211699847,9.06979266,1958.4,1958.1,0.0011]
[1771211700233,0.48616697,1958.8,1958.2,0.46354791]
[1771211700528,0.48616697,1958.8,1958.4,0.46244791]
[1771211700529,0.762,1958.8,1958.4,0.46244791]
[1771211701257,0.762,1959.0,1958.5,0.46244791]
[1771211701460,0.762,1959.0,1958.5,0.46354791]
[1771211701655,8.30879266,1959.3,1958.7,0.46244791]
[1771211701955,1.24816697,1959.2,1958.5,0.46354791]
[1771211702127,0.762,1959.2,1958.5,0.46244791]
[1771211702328,0.762,1959.2,1958.6,0.46354791]
[1771211702565,0.762,1959.2,1958.6,0.46244791]
[1771211702864,0.762,1959.2,1958.7,0.0011]
[1771211703368,0.762,1959.2,1958.8,0.0011]
[1771211703567,0.762,1959.2,1958.7,0.0011]
[1771211703935,0.762,1959.2,1958.8,0.0011]
[1771211704142,0.762,1959.2,1958.7,0.0011]
[1771211704671,0.762,1959.2,1958.8,0.0011]
[1771211704883,0.0011,1959.4,1958.9,0.46244791]
[1771211705033,0.765,1959.3,1958.9,0.0011]
[1771211705233,0.765,1959.3,1959.0,0.0011]
[1771211705465,0.765,1959.3,1958.8,0.0011]
[1771211705837,0.765,1959.3,1958.9,0.0011]
[1771211706147,0.765,1959.3,1959.0,0.0011]
[1771211706354,0.765,1959.3,1958.9,0.0011]
[1771211706866,0.765,1959.3,1958.9,0.46354791]
[1771211708139,0.0011,1959.4,1959.0,0.46244791]
[1771211708339,0.7681,1959.4,1959.0,0.46244791]
[1771211709366,0.7681,1959.4,1959.1,0.0011]
[1771211714564,0.0011,1959.3,1959.1,0.0011]
[1771211715666,0.0011,1959.3,1959.1,0.4789815]
[1771211715847,0.0011,1959.3,1959.1,0.0011]
[1771211720249,0.48516639,1959.3,1958.5,1.2948815]
[1771211720460,0.48516639,1959.3,1958.6,0.4789815]
[1771211720643,8.31177837,1959.2,1958.6,0.4789815]
[1771211721357,0.0011,1959.3,1958.6,0.4789815]
[1771211723269,0.48516639,1959.3,1958.6,0.4789815]
[1771211723481,8.31287837,1959.3,1958.6,0.4789815]
[1771211725488,8.31287837,1959.3,1958.6,0.4778815]
[1771211726483,0.0011,1959.2,1958.6,0.4778815]
[1771211726657,0.776,1959.1,1958.6,0.4778815]
[1771211727592,0.776,1959.1,1958.7,0.0011]
[1771211731607,1.26006639,1959.1,1958.7,0.0011]
[1771211731967,1.26006639,1959.1,1958.8,0.0011]
[1771211735381,0.776,1959.1,1958.8,0.0011]
[1771211736597,0.776,1959.1,1958.9,0.0011]
[1771211738513,0.776,1959.1,1958.7,0.4778815]
[1771211738712,0.776,1959.1,1958.8,0.0011]
[1771211738920,0.0011,1959.2,1958.8,0.4789815]
[1771211739413,0.0011,1959.2,1958.8,0.0011]
[1771211743721,0.0011,1959.2,1958.8,0.46850502]
[1771211747420,0.0011,1959.2,1958.9,0.0011]
[1771211749033,0.0011,1959.2,1959.0,0.0011]
[1771211749200,0.0011,1959.2,1958.9,0.0011]
[1771211749603,0.0011,1959.1,1959.0,0.0011]
[1771211749920,0.0011,1959.1,1958.9,0.0011]
[1771211750297,0.0011,1959.1,1959.0,0.0011]
[1771211750501,0.0011,1959.1,1958.7,0.0011]
[1771211751032,0.0011,1959.1,1958.8,0.0011]
[1771211751226,0.0011,1959.1,1958.9,0.0011]
[1771211751398,0.0011,1959.1,1958.7,0.0011]
[1771211753104,0.0011,1959.1,1958.7,0.45512883]
[1771211753616,0.0011,1959.1,1958.7,0.0011]
[1771211754336,0.0011,1959.1,1958.7,0.45512883]
[1771211755423,0.0011,1959.1,1958.8,0.0011]
[1771211757515,0.0011,1959.1,1958.8,0.45512883]
[1771211759237,0.0011,1959.1,1958.8,0.0011]
[1771211761822,0.0011,1959.0,1958.8,0.0011]
[1771211762036,0.48577969,1959.0,1958.9,0.0011]
[1771211762233,0.48577969,1959.0,1958.5,0.001]
[1771211762420,0.48577969,1959.0,1958.6,0.0011]
[1771211766515,0.48577969,1959.0,1958.7,0.0011]
[1771211766849,0.0011,1959.0,1958.7,0.0011]
[1771211768324,0.48577969,1959.0,1958.5,0.001]
[1771211768530,0.48467969,1958.5,1958.3,0.001]
[1771211770050,0.48467969,1958.5,1958.0,0.00153886]
[1771211770255,0.48467969,1958.3,1957.7,0.45402883]
[1771211771354,1.28367969,1958.3,1957.7,0.45402883]
[1771211772043,0.8,1958.4,1957.8,0.50508826]
[1771211773934,0.8,1958.4,1957.8,0.45502883]
[1771211774664,1.25759617,1958.4,1957.8,0.45502883]
[1771211776832,1.25759617,1958.4,1957.8,0.001]
[1771211776833,0.45759617,1958.3,1957.8,0.001]
[1771211778142,0.45759617,1958.1,1957.8,0.001]
[1771211779457,0.45759617,1958.0,1957.8,0.001]
[1771211779864,0.45759617,1958.0,1957.5,0.48691473]
[1771211779865,0.45759617,1958.0,1957.5,0.001]
[1771211780167,7.83617896,1957.6,1957.0,1.40745359]
[1771211780458,7.83617896,1957.6,1957.1,0.48591473]
[1771211780669,0.802,1957.7,1957.1,0.48591473]
[1771211780836,0.802,1957.7,1957.2,0.48591473]
[1771211781461,8.29377513,1958.0,1957.2,0.48591473]
[1771211781462,0.803,1957.8,1957.2,0.48591473]
[1771211782367,1.26059617,1957.9,1957.2,0.48591473]
[1771211783047,0.803,1957.9,1957.2,0.48591473]
[1771211783839,8.29377513,1957.8,1957.0,1.40745359]
[1771211784040,0.45759617,1957.7,1957.1,0.48591473]
[1771211786353,0.45759617,1957.7,1957.3,0.0011]
[1771211787878,0.45759617,1957.7,1956.9,7.83617896]
[1771211787879,0.45759617,1957.3,1956.3,0.48591473]
[1771211788047,8.64317896,1957.2,1956.4,0.48591473]
[1771211788370,0.807,1957.5,1957.0,0.48591473]
[1771211788668,0.001,1957.8,1957.0,0.48591473]
[1771211788964,0.807,1957.6,1957.0,0.48591473]
[1771211791012,0.001,1957.8,1957.6,0.48591473]
[1771211791272,0.00153886,1958.0,1957.4,0.48591473]
[1771211792875,0.45759617,1957.9,1956.1,0.48591473]
[1771211793176,0.45759617,1957.6,1956.8,0.48591473]
[1771211794279,0.45759617,1957.6,1956.5,0.48591473]
[1771211794675,0.45759617,1957.6,1956.4,0.811]
[1771211795047,0.45759617,1957.5,1956.4,1.29691473]
[1771211795253,0.45759617,1957.3,1956.4,1.29691473]
[1771211796157,0.45759617,1957.3,1955.7,9.03350286]
[1771211796158,9.03350286,1956.6,1955.0,0.00153886]
[1771211796356,0.45759617,1956.2,1955.1,0.44955589]
[1771211796576,0.98159617,1956.4,1955.1,0.44955589]
[1771211796764,0.64,1956.3,1955.1,0.44955589]
[1771211797383,1.09759617,1956.3,1955.1,0.44955589]
[1771211797550,0.45759617,1956.3,1955.1,1.27869647]
[1771211797881,0.524,1956.5,1955.4,0.44955589]
[1771211798181,0.98159617,1956.5,1955.5,0.44955589]
[1771211798484,0.45759617,1956.5,1955.5,0.44955589]
[1771211799279,0.45759617,1956.5,1956.3,0.0011]
[1771211799472,0.45759617,1956.5,1955.5,0.44955589]
[1771211799859,0.45759617,1956.5,1955.6,0.44955589]
[1771211800785,0.45759617,1956.7,1955.6,0.44955589]
[1771211800987,0.45759617,1956.7,1955.7,0.44955589]
[1771211802186,0.45759617,1956.7,1955.6,1.27837879]
[1771211802187,0.45759617,1956.9,1955.9,0.44955589]
[1771211803180,0.45759617,1956.9,1955.9,1.14255589]
[1771211805874,0.45759617,1956.9,1956.0,0.44955589]
[1771211811190,0.47043265,1956.7,1956.0,0.44955589]
[1771211812265,0.47043265,1956.7,1955.9,0.693]
[1771211812489,0.47043265,1956.7,1955.9,1.14255589]
[1771211812679,0.47043265,1956.7,1956.0,0.44955589]
[1771211813870,0.47043265,1956.7,1956.1,7.84715134]
[1771211815704,0.001,1956.8,1956.1,8.29670723]
[1771211816010,0.001,1956.8,1956.5,7.84715134]
[1771211819871,0.001,1956.8,1956.3,0.819]
[1771211820298,0.001,1956.8,1956.3,1.26855589]
[1771211820596,0.001,1956.8,1956.4,0.44955589]
[1771211820895,0.00153886,1957.0,1956.5,0.44955589]
[1771211821098,0.47043265,1957.3,1956.5,0.44955589]
[1771211823379,0.47043265,1957.5,1956.7,0.44955589]
[1771211823603,0.47043265,1957.7,1956.8,0.44955589]
[1771211823993,0.47043265,1957.7,1957.0,0.44955589]
[1771211825183,0.47043265,1957.7,1956.7,0.821]
[1771211825376,0.47043265,1957.7,1956.7,1.27055589]
[1771211825579,0.47043265,1957.7,1956.7,0.821]
[1771211825898,0.47043265,1957.7,1956.7,1.27055589]
[1771211827012,0.47043265,1957.7,1956.7,0.821]
[1771211829225,0.47043265,1957.7,1956.7,1.27055589]
[1771211833611,0.47043265,1957.7,1956.2,6.03182775]
[1771211833612,0.57283265,1957.6,1956.2,0.92]
[1771211833788,0.57283265,1957.6,1956.1,0.45065589]
[1771211835711,0.804,1957.5,1956.1,0.45065589]
[1771211835918,0.46311937,1957.4,1956.1,0.45065589]
[1771211836113,0.46311937,1957.4,1956.8,0.0011]
[1771211839501,0.46311937,1957.3,1956.8,0.0011]
[1771211840415,0.46311937,1957.5,1956.8,0.0011]
[1771211841909,0.46311937,1957.5,1956.8,7.84245955]
[1771211842224,0.46311937,1957.5,1956.8,0.0011]
[1771211845830,0.46311937,1957.5,1956.8,7.84245955]
[1771211846124,0.46311937,1957.5,1956.8,8.29201544]
[1771211847917,0.46311937,1957.5,1956.8,0.45065589]
[1771211848305,0.46311937,1957.5,1956.8,0.0011]
[1771211850625,0.46311937,1957.5,1956.9,0.0011]
[1771211850827,0.46311937,1957.3,1956.9,0.0011]
[1771211851416,0.001,1957.4,1956.9,0.45065589]
[1771211854813,0.001,1957.4,1956.9,0.0011]
[1771211855362,0.46411937,1957.4,1956.9,0.0011]
[1771211864151,0.46411937,1957.4,1957.0,0.0011]
[1771211864533,0.50096791,1957.3,1957.0,0.0011]
[1771211872266,0.48988066,1957.3,1957.0,0.0011]
[1771211874337,0.001,1957.3,1957.0,0.0011]
[1771211875000,0.48988066,1957.3,1957.0,0.0011]
[1771211877542,0.48988066,1957.3,1957.1,0.0011]
[1771211877744,0.001,1957.2,1957.1,0.0011]
[1771211880381,0.001,1957.4,1957.1,7.84308975]
[1771211881158,0.001,1957.4,1957.1,0.0011]
[1771211881683,0.001,1957.4,1957.1,7.84308975]
[1771211881884,0.001,1957.4,1957.1,8.29264564]
[1771211882781,0.001,1957.6,1957.3,7.84198975]
[1771211883162,0.001,1957.6,1957.2,0.44955589]
[1771211883362,0.001,1957.6,1957.1,7.84308975]
[1771211883563,0.48988066,1957.6,1957.1,7.84308975]
[1771211890801,0.48988066,1957.6,1957.1,8.67008975]
[1771211891197,0.48988066,1957.6,1957.2,0.0011]
[1771211891408,0.001,1957.5,1957.2,0.0011]
[1771211893583,0.48988066,1957.8,1957.2,0.0011]
[1771211893584,0.48988066,1957.8,1957.3,7.84198975]
[1771211893897,0.48988066,1957.8,1957.2,0.0011]
[1771211897117,0.48988066,1957.8,1957.2,7.84308975]
[1771211897419,0.48988066,1957.8,1957.2,0.0011]
[1771211899434,0.001,1957.8,1957.2,0.45065589]
[1771211899639,0.001,1957.8,1957.2,8.29264564]
[1771211899791,0.46436647,1957.8,1957.2,8.29264564]
[1771211901990,0.46436647,1957.8,1957.2,8.28908285]
[1771211903003,0.001,1957.7,1957.2,8.28908285]
[1771211905013,0.79753886,1958.0,1957.2,8.28908285]
[1771211905014,0.00153886,1958.0,1957.7,0.44955589]
[1771211905322,0.00153886,1958.0,1957.8,7.83842696]
[1771211908408,0.00153886,1958.0,1957.7,0.44955589]
[1771211909217,0.00153886,1958.0,1957.5,9.12398285]
[1771211909527,0.00153886,1958.0,1957.6,0.44955589]
[1771211911606,0.00153886,1958.0,1957.5,8.67442696]
[1771211912109,0.00153886,1958.0,1957.5,9.12398285]
[1771211913225,0.46490533,1958.0,1957.5,0.836]
[1771211915107,0.46490533,1958.0,1957.3,0.8511]
[1771211915405,0.46436647,1957.9,1957.3,0.8511]
[1771211916738,0.46436647,1957.9,1957.3,0.0011]
[1771211926947,0.46436647,1957.9,1957.4,0.0011]
[1771211933420,0.8,1957.8,1957.4,0.0011]
[1771211934240,1.28572281,1957.8,1957.4,0.0011]
[1771211935924,0.48572281,1957.7,1957.4,0.0011]
[1771211938224,0.801,1957.8,1956.7,0.0011]
[1771211938225,0.48572281,1957.2,1956.7,0.0011]
[1771211938436,8.64242696,1957.1,1956.7,0.0011]
[1771211938836,0.804,1957.1,1956.8,0.45065589]
[1771211939023,0.804,1957.5,1956.8,0.45065589]
[1771211939224,1.28972281,1957.5,1956.8,0.45065589]
[1771211940044,0.48572281,1957.7,1956.8,0.45065589]
[1771211940359,0.806,1957.6,1957.0,0.44955589]
[1771211941120,0.48572281,1957.7,1957.0,0.44955589]
[1771211941949,0.001,1957.8,1957.2,0.44955589]
[1771211942449,0.48672281,1957.8,1957.0,0.44955589]
[1771211942631,0.48672281,1957.8,1956.9,8.68442696]
[1771211942632,0.48572281,1957.6,1956.9,0.846]
[1771211942833,0.48572281,1957.6,1956.9,1.29555589]
[1771211945644,0.05095442,1957.7,1957.0,0.44955589]
[1771211945846,0.48672281,1957.8,1957.1,0.44955589]
[1771211950373,0.001,1957.7,1957.1,0.44955589]
[1771211952436,0.48672281,1957.7,1957.1,0.44955589]
[1771211952967,0.48572281,1957.3,1957.0,0.0011]
[1771211953260,7.83842696,1957.4,1957.0,0.0011]
[1771211953640,0.4771608,1957.7,1957.0,0.45065589]
[1771211953844,0.808,1957.7,1957.0,0.45065589]
[1771211954070,8.31458776,1957.6,1957.0,0.0011]
[1771211954268,0.4761608,1957.5,1957.0,0.0011]
[1771211962558,0.4771608,1957.5,1957.0,0.0011]
[1771211965881,0.4761608,1957.4,1957.0,0.0011]
[1771211966082,0.52711522,1957.4,1957.0,0.0011]
[1771211967058,0.4761608,1957.2,1957.0,0.0011]
[1771211967264,8.31774993,1957.1,1956.8,0.0011]
[1771211969382,7.84158913,1957.1,1956.8,0.0011]
[1771211970582,8.31774993,1957.1,1956.8,0.0011]
[1771211971395,7.84258913,1957.5,1956.5,0.9211]
[1771211971396,0.4761608,1956.8,1956.5,0.9211]
[1771211971785,0.4761608,1956.8,1956.5,0.0011]
[1771211974771,0.4761608,1956.8,1956.6,0.0011]
[1771211977671,0.4761608,1956.6,1956.0,0.00153886]
[1771211979901,8.65858913,1956.7,1956.0,0.45109475]
[1771211979902,0.817,1956.7,1956.0,0.45109475]
[1771211980408,1.34411522,1956.7,1956.0,0.45109475]
[1771211980614,0.4761608,1956.6,1956.0,0.45109475]